[Event "Titled Tuesday Blitz April 11 Early 2023"]
[White "Jeet, Jain"]
[Black "Jaferian, Koosha"]
[WhiteFideId "5073022"]
[BlackFideId "12507440"]
[WhiteElo "2067"]
[BlackElo "2073"]
[Result "0-1"]
[Round "07"]
[TimeControl "180+2"]
[Date "2023.04.11"]
[WhiteClock "0:00:19"]
[BlackClock "0:00:08"]

1. Nf3 {[%clk 0:03:00]}  d5 {[%clk 0:02:59]} 2. b3 {[%clk 0:02:49]}  Nf6 {[%clk 0:02:59]} 3. Bb2 {[%clk 0:02:48]}  Bf5 {[%clk 0:02:59]} 4. e3 {[%clk 0:02:47]}  e6 {[%clk 0:02:59]} 5. c4 {[%clk 0:02:47]}  c6 {[%clk 0:03:00]} 6. d4 {[%clk 0:02:45]}  Nbd7 {[%clk 0:03:00]} 7. Nbd2 {[%clk 0:02:45]}  a5 {[%clk 0:02:59]} 8. a3 {[%clk 0:02:43]}  Bd6 {[%clk 0:02:59]} 9. h3 {[%clk 0:02:43]}  h6 {[%clk 0:03:00]} 10. Be2 {[%clk 0:02:40]}  O-O {[%clk 0:02:59]} 11. O-O {[%clk 0:02:38]}  Qe7 {[%clk 0:02:59]} 12. Ne5 {[%clk 0:02:37]}  Ne4 {[%clk 0:02:53]} 13. Nxd7 {[%clk 0:02:31]}  Qxd7 {[%clk 0:02:51]} 14. Nxe4 {[%clk 0:02:31]}  Bxe4 {[%clk 0:02:52]} 15. f3 {[%clk 0:02:31]}  Bg6 {[%clk 0:02:51]} 16. Bd3 {[%clk 0:02:32]}  Bxd3 {[%clk 0:02:48]} 17. Qxd3 {[%clk 0:02:33]}  Bc7 {[%clk 0:02:48]} 18. e4 {[%clk 0:02:31]}  Qd6 {[%clk 0:02:45]} 19. e5 {[%clk 0:02:30]}  Qd7 {[%clk 0:02:42]} 20. c5 {[%clk 0:02:28]}  Bd8 {[%clk 0:02:42]} 21. f4 {[%clk 0:02:28]}  f5 {[%clk 0:02:40]} 22. b4 {[%clk 0:02:17]}  b5 {[%clk 0:02:37]} 23. a4 {[%clk 0:02:15]}  bxa4 {[%clk 0:02:23]} 24. Rxa4 {[%clk 0:02:15]}  Bc7 {[%clk 0:02:23]} 25. Rfa1 {[%clk 0:02:14]}  Rfb8 {[%clk 0:02:22]} 26. Bc3 {[%clk 0:02:12]}  Rb5 {[%clk 0:02:21]} 27. bxa5 {[%clk 0:02:10]}  Ra6 {[%clk 0:02:22]} 28. Rb1 {[%clk 0:02:06]}  Rxb1+ {[%clk 0:01:49]} 29. Qxb1 {[%clk 0:02:06]}  Qc8 {[%clk 0:01:50]} 30. Kh2 {[%clk 0:01:55]}  Ra8 {[%clk 0:01:42]} 31. g4 {[%clk 0:01:51]}  fxg4 {[%clk 0:01:39]} 32. hxg4 {[%clk 0:01:52]}  Qa6 {[%clk 0:01:39]} 33. Qc2 {[%clk 0:01:31]}  Rf8 {[%clk 0:01:29]} 34. Qf2 {[%clk 0:01:20]}  Qd3 {[%clk 0:01:25]} 35. Bd2 {[%clk 0:01:19]}  Qb3 {[%clk 0:01:12]} 36. Rb4 {[%clk 0:01:15]}  Qa2 {[%clk 0:01:07]} 37. Rb6 {[%clk 0:01:08]}  Kh7 {[%clk 0:00:40]} 38. Kg2 {[%clk 0:01:05]}  Bxb6 {[%clk 0:00:29]} 39. cxb6 {[%clk 0:01:04]}  Qc4 {[%clk 0:00:30]} 40. f5 {[%clk 0:00:55]}  exf5 {[%clk 0:00:22]} 41. gxf5 {[%clk 0:00:56]}  c5 {[%clk 0:00:23]} 42. f6 {[%clk 0:00:52]}  gxf6 {[%clk 0:00:22]} 43. Qf5+ {[%clk 0:00:51]}  Kg7 {[%clk 0:00:20]} 44. Bf4 {[%clk 0:00:24]}  Qe2+ {[%clk 0:00:19]} 45. Kh3 {[%clk 0:00:23]}  Qf1+ {[%clk 0:00:19]} 46. Kg3 {[%clk 0:00:20]}  Qg1+ {[%clk 0:00:19]} 47. Kh4 {[%clk 0:00:20]}  Qh1+ {[%clk 0:00:18]} 48. Qh3 {[%clk 0:00:19]}  Qe4 {[%clk 0:00:16]} 49. Qg4+ {[%clk 0:00:19]}  Kh8 {[%clk 0:00:12]} 50. b7 {[%clk 0:00:19]}  f5 {[%clk 0:00:11]} 51. Qg3 {[%clk 0:00:17]}  Qh1+ {[%clk 0:00:09]} 52. Qh2 {[%clk 0:00:16]}  Qe1+ {[%clk 0:00:08]} 53. Kh3 {[%clk 0:00:16]}  Qf1+ {[%clk 0:00:08]} 54. Kh4 {[%clk 0:00:17]}  Qe1+ {[%clk 0:00:08]} 55. Kh3 {[%clk 0:00:15]}  Qf1+ {[%clk 0:00:09]} 56. Qg2 {[%clk 0:00:13]}  Qxf4 {[%clk 0:00:09]} 57. Qg6 {[%clk 0:00:13]}  Qf3+ {[%clk 0:00:08]} 58. Kh2 {[%clk 0:00:14]}  Qf2+ {[%clk 0:00:08]} 59. Kh3 {[%clk 0:00:14]}  Qf3+ {[%clk 0:00:08]} 60. Kh2 {[%clk 0:00:15]}  Qe2+ {[%clk 0:00:09]} 61. Kh3 {[%clk 0:00:15]}  Qd3+ {[%clk 0:00:09]} 62. Kh4 {[%clk 0:00:15]}  Qxd4+ {[%clk 0:00:09]} 63. Kh5 {[%clk 0:00:16]}  Qd1+ {[%clk 0:00:08]} 64. Kxh6 {[%clk 0:00:15]}  Qh1+ {[%clk 0:00:08]} 65. Kg5 {[%clk 0:00:16]}  Qg1+ {[%clk 0:00:08]} 66. Kh6 {[%clk 0:00:16]}  Qh2+ {[%clk 0:00:09]} 67. Qh5 {[%clk 0:00:17]}  Qd2+ {[%clk 0:00:08]} 68. Qg5 {[%clk 0:00:17]}  Qh2+ {[%clk 0:00:08]} 69. Qh5 {[%clk 0:00:17]}  Qf4+ {[%clk 0:00:08]} 70. Qg5 {[%clk 0:00:17]}  Qxe5 {[%clk 0:00:07]} 71. a6 {[%clk 0:00:16]}  Rf6+ {[%clk 0:00:06]} 72. Kh5 {[%clk 0:00:15]}  Qh2+ {[%clk 0:00:06]} 73. Qh4 {[%clk 0:00:15]}  Rh6+ {[%clk 0:00:07]} 74. Kxh6 {[%clk 0:00:15]}  Qxh4+ {[%clk 0:00:08]} 75. Kg6 {[%clk 0:00:16]}  Qg4+ {[%clk 0:00:08]} 76. Kf6 {[%clk 0:00:16]}  Qh4+ {[%clk 0:00:08]} 77. Kg6 {[%clk 0:00:17]}  Qg3+ {[%clk 0:00:07]} 78. Kf6 {[%clk 0:00:16]}  Qb8 {[%clk 0:00:08]} 79. Kxf5 {[%clk 0:00:16]}  c4 {[%clk 0:00:08]} 80. Ke6 {[%clk 0:00:15]}  c3 {[%clk 0:00:08]} 81. a7 {[%clk 0:00:16]}  Qxa7 {[%clk 0:00:07]} 82. Kxd5 {[%clk 0:00:17]}  Qxb7+ {[%clk 0:00:07]} 83. Kc4 {[%clk 0:00:18]}  c2 {[%clk 0:00:08]} 84. Kd3 {[%clk 0:00:19]}  c1=N+ {[%clk 0:00:07]} 85. Kd2 {[%clk 0:00:19]}  Nb3+ {[%clk 0:00:08]} 0-1


[Site "https://www.chess.com"]

[Event "Titled Tuesday Blitz April 11 Early 2023"]
[White "Tan, Zhongyi"]
[Black "slidingknight2775"]
[WhiteFideId "8603642"]
[WhiteElo "2519"]
[BlackElo "2582"]
[Result "1-0"]
[Round "07"]
[TimeControl "180+2"]
[Date "2023.04.11"]
[WhiteClock "0:00:55"]
[BlackClock "0:00:02"]

1. d4 {[%clk 0:03:00]}  Nf6 {[%clk 0:02:59]} 2. c4 {[%clk 0:03:01]}  e6 {[%clk 0:03:00]} 3. Nc3 {[%clk 0:03:00]}  Bb4 {[%clk 0:03:01]} 4. Nf3 {[%clk 0:03:00]}  b6 {[%clk 0:02:59]} 5. e3 {[%clk 0:03:00]}  Bb7 {[%clk 0:02:58]} 6. Bd3 {[%clk 0:03:01]}  O-O {[%clk 0:02:58]} 7. O-O {[%clk 0:03:01]}  d5 {[%clk 0:02:58]} 8. cxd5 {[%clk 0:03:00]}  exd5 {[%clk 0:02:59]} 9. Ne5 {[%clk 0:03:00]}  c5 {[%clk 0:02:46]} 10. a3 {[%clk 0:02:52]}  Ba5 {[%clk 0:02:41]} 11. Qf3 {[%clk 0:02:16]}  Bxc3 {[%clk 0:02:09]} 12. bxc3 {[%clk 0:02:17]}  Ba6 {[%clk 0:02:08]} 13. dxc5 {[%clk 0:02:09]}  bxc5 {[%clk 0:02:03]} 14. Bxa6 {[%clk 0:02:08]}  Nxa6 {[%clk 0:02:03]} 15. c4 {[%clk 0:02:08]}  Nc7 {[%clk 0:01:38]} 16. Rd1 {[%clk 0:02:05]}  Qe7 {[%clk 0:01:30]} 17. Bb2 {[%clk 0:02:01]}  Qe6 {[%clk 0:01:29]} 18. Rac1 {[%clk 0:01:58]}  Rad8 {[%clk 0:01:24]} 19. h3 {[%clk 0:01:55]}  h6 {[%clk 0:01:08]} 20. cxd5 {[%clk 0:01:53]}  Rxd5 {[%clk 0:01:09]} 21. Rxd5 {[%clk 0:01:52]}  Ncxd5 {[%clk 0:01:09]} 22. Rxc5 {[%clk 0:01:50]}  Rb8 {[%clk 0:00:56]} 23. Bd4 {[%clk 0:01:47]}  Rb1+ {[%clk 0:00:55]} 24. Kh2 {[%clk 0:01:47]}  Ne7 {[%clk 0:00:40]} 25. Rc7 {[%clk 0:01:33]}  a6 {[%clk 0:00:20]} 26. Qa8+ {[%clk 0:01:21]}  Kh7 {[%clk 0:00:19]} 27. Qf8 {[%clk 0:01:16]}  Ng6 {[%clk 0:00:07]} 28. Qxf7 {[%clk 0:01:02]}  Qxf7 {[%clk 0:00:06]} 29. Rxf7 {[%clk 0:01:01]}  Nxe5 {[%clk 0:00:06]} 30. Bxe5 {[%clk 0:01:02]}  Ne8 {[%clk 0:00:04]} 31. Re7 {[%clk 0:01:02]}  Kg6 {[%clk 0:00:02]} 32. Rxe8 {[%clk 0:01:01]}  Kf7 {[%clk 0:00:03]} 33. Ra8 {[%clk 0:01:00]}  Rb5 {[%clk 0:00:02]} 34. Ra7+ {[%clk 0:01:00]}  Ke6 {[%clk 0:00:03]} 35. Bxg7 {[%clk 0:01:00]}  Kd5 {[%clk 0:00:02]} 36. Rxa6 {[%clk 0:00:59]}  Ke4 {[%clk 0:00:02]} 37. Bxh6 {[%clk 0:00:59]}  Kd3 {[%clk 0:00:02]} 38. Bf4 {[%clk 0:00:57]}  Kc2 {[%clk 0:00:01]} 39. h4 {[%clk 0:00:57]}  Kb2 {[%clk 0:00:02]} 40. g4 {[%clk 0:00:57]}  Kb1 {[%clk 0:00:02]} 41. h5 {[%clk 0:00:57]}  Rb2 {[%clk 0:00:02]} 42. Kg3 {[%clk 0:00:57]}  Rc2 {[%clk 0:00:03]} 43. h6 {[%clk 0:00:57]}  Ka1 {[%clk 0:00:03]} 44. h7 {[%clk 0:00:57]}  Ka2 {[%clk 0:00:03]} 45. h8=Q {[%clk 0:00:56]}  Kb1 {[%clk 0:00:03]} 46. Rb6+ {[%clk 0:00:55]}  Ka2 {[%clk 0:00:02]} 47. Qg8+ {[%clk 0:00:55]}  Ka1 {[%clk 0:00:02]} 48. Be5+ {[%clk 0:00:55]} 1-0


[Site "https://www.chess.com"]

[Event "Titled Tuesday Blitz April 11 Early 2023"]
[White "Martic, Ivan"]
[Black "Dronavalli, Harika"]
[WhiteFideId "929301"]
[BlackFideId "5015197"]
[WhiteElo "2360"]
[BlackElo "2432"]
[Result "0-1"]
[Round "07"]
[TimeControl "180+2"]
[Date "2023.04.11"]
[WhiteClock "0:00:04"]
[BlackClock "0:00:42"]

1. d4 {[%clk 0:03:00]}  g6 {[%clk 0:02:58]} 2. c4 {[%clk 0:02:58]}  Bg7 {[%clk 0:02:58]} 3. Nc3 {[%clk 0:02:59]}  c5 {[%clk 0:02:58]} 4. d5 {[%clk 0:02:56]}  Nf6 {[%clk 0:02:50]} 5. e4 {[%clk 0:02:55]}  O-O {[%clk 0:02:50]} 6. Nf3 {[%clk 0:02:52]}  e6 {[%clk 0:02:48]} 7. Be2 {[%clk 0:02:40]}  Re8 {[%clk 0:02:41]} 8. d6 {[%clk 0:02:37]}  Nc6 {[%clk 0:02:38]} 9. h3 {[%clk 0:02:30]}  e5 {[%clk 0:02:35]} 10. Bg5 {[%clk 0:02:21]}  Nd4 {[%clk 0:02:26]} 11. Nd5 {[%clk 0:02:13]}  Qa5+ {[%clk 0:02:12]} 12. b4 {[%clk 0:02:12]}  Qd8 {[%clk 0:02:05]} 13. Nc7 {[%clk 0:01:52]}  Rb8 {[%clk 0:01:53]} 14. Nxe8 {[%clk 0:01:37]}  Qxe8 {[%clk 0:01:53]} 15. Bxf6 {[%clk 0:01:36]}  Bxf6 {[%clk 0:01:53]} 16. bxc5 {[%clk 0:01:36]}  b6 {[%clk 0:01:53]} 17. Rb1 {[%clk 0:01:31]}  Bb7 {[%clk 0:01:51]} 18. Bd3 {[%clk 0:01:21]}  bxc5 {[%clk 0:01:40]} 19. Nxd4 {[%clk 0:01:19]}  exd4 {[%clk 0:01:40]} 20. O-O {[%clk 0:01:10]}  Be5 {[%clk 0:01:40]} 21. f4 {[%clk 0:01:06]}  Bxd6 {[%clk 0:01:39]} 22. e5 {[%clk 0:01:06]}  Bc7 {[%clk 0:01:39]} 23. Rb3 {[%clk 0:00:49]}  d6 {[%clk 0:01:31]} 24. Qb1 {[%clk 0:00:36]}  Qc6 {[%clk 0:01:11]} 25. Rf2 {[%clk 0:00:33]}  dxe5 {[%clk 0:01:11]} 26. fxe5 {[%clk 0:00:25]}  Bxe5 {[%clk 0:01:11]} 27. Rfb2 {[%clk 0:00:20]}  Qf6 {[%clk 0:01:00]} 28. Qf1 {[%clk 0:00:17]}  Qe7 {[%clk 0:00:58]} 29. Qb1 {[%clk 0:00:13]}  Qg5 {[%clk 0:00:57]} 30. Rxb7 {[%clk 0:00:12]}  Rxb7 {[%clk 0:00:57]} 31. Rxb7 {[%clk 0:00:13]}  Qf4 {[%clk 0:00:55]} 32. Rb3 {[%clk 0:00:10]}  Qh2+ {[%clk 0:00:53]} 33. Kf1 {[%clk 0:00:10]}  Bf4 {[%clk 0:00:49]} 34. Be4 {[%clk 0:00:10]}  Be3 {[%clk 0:00:47]} 35. Rxe3 {[%clk 0:00:09]}  dxe3 {[%clk 0:00:48]} 36. Qd3 {[%clk 0:00:09]}  Qf4+ {[%clk 0:00:48]} 37. Ke2 {[%clk 0:00:08]}  Qf2+ {[%clk 0:00:48]} 38. Kd1 {[%clk 0:00:08]}  Kg7 {[%clk 0:00:45]} 39. Bf3 {[%clk 0:00:08]}  Qxa2 {[%clk 0:00:42]} 40. Qc3+ {[%clk 0:00:08]}  Kg8 {[%clk 0:00:42]} 41. Qxe3 {[%clk 0:00:05]}  Qxc4 {[%clk 0:00:42]} 42. Qe8+ {[%clk 0:00:05]}  Kg7 {[%clk 0:00:42]} 43. Qe5+ {[%clk 0:00:05]}  Kg8 {[%clk 0:00:43]} 44. Qe4 {[%clk 0:00:04]}  Qb3+ {[%clk 0:00:42]} 45. Ke1 {[%clk 0:00:05]}  Qc3+ {[%clk 0:00:42]} 46. Kf2 {[%clk 0:00:05]}  a5 {[%clk 0:00:43]} 47. Qe3 {[%clk 0:00:05]}  Qb2+ {[%clk 0:00:42]} 48. Qe2 {[%clk 0:00:05]}  Qd4+ {[%clk 0:00:42]} 49. Qe3 {[%clk 0:00:05]}  Qd6 {[%clk 0:00:41]} 50. Be2 {[%clk 0:00:05]}  a4 {[%clk 0:00:38]} 51. Bc4 {[%clk 0:00:05]}  Qf6+ {[%clk 0:00:39]} 52. Kg1 {[%clk 0:00:04]}  Qd4 {[%clk 0:00:37]} 53. Qxd4 {[%clk 0:00:04]}  cxd4 {[%clk 0:00:38]} 54. Kf2 {[%clk 0:00:05]}  Kg7 {[%clk 0:00:37]} 55. Ke2 {[%clk 0:00:05]}  Kf6 {[%clk 0:00:38]} 56. Kd3 {[%clk 0:00:06]}  Ke5 {[%clk 0:00:39]} 57. Bxf7 {[%clk 0:00:06]}  g5 {[%clk 0:00:39]} 58. Bg8 {[%clk 0:00:05]}  h5 {[%clk 0:00:39]} 59. g3 {[%clk 0:00:06]}  h4 {[%clk 0:00:39]} 60. g4 {[%clk 0:00:06]}  a3 {[%clk 0:00:38]} 61. Ba2 {[%clk 0:00:06]}  Kf4 {[%clk 0:00:38]} 62. Kxd4 {[%clk 0:00:06]}  Kg3 {[%clk 0:00:39]} 63. Ke4 {[%clk 0:00:07]}  Kxh3 {[%clk 0:00:40]} 64. Kf5 {[%clk 0:00:07]}  Kg3 {[%clk 0:00:40]} 65. Kxg5 {[%clk 0:00:07]}  h3 {[%clk 0:00:41]} 66. Kf5 {[%clk 0:00:04]}  h2 {[%clk 0:00:42]} 67. Bd5 {[%clk 0:00:04]}  a2 {[%clk 0:00:42]} 68. g5 {[%clk 0:00:04]}  a1=Q {[%clk 0:00:41]} 69. g6 {[%clk 0:00:04]}  Qg7 {[%clk 0:00:42]} 0-1


[Site "https://www.chess.com"]

[Event "Titled Tuesday Blitz April 11 Early 2023"]
[White "Krysa, Leandro"]
[Black "Yelisieiev, Yevhenii"]
[WhiteFideId "116807"]
[BlackFideId "14139642"]
[WhiteElo "2489"]
[BlackElo "2425"]
[Result "1-0"]
[Round "07"]
[TimeControl "180+2"]
[Date "2023.04.11"]
[WhiteClock "0:01:19"]
[BlackClock "0:01:27"]

1. e4 {[%clk 0:03:00]}  d6 {[%clk 0:02:59]} 2. d4 {[%clk 0:03:00]}  Nf6 {[%clk 0:02:59]} 3. Nc3 {[%clk 0:03:00]}  e5 {[%clk 0:03:00]} 4. Nf3 {[%clk 0:02:59]}  Nbd7 {[%clk 0:03:00]} 5. Rg1 {[%clk 0:02:58]}  c6 {[%clk 0:02:53]} 6. g4 {[%clk 0:02:55]}  g6 {[%clk 0:02:48]} 7. Be3 {[%clk 0:02:47]}  Bg7 {[%clk 0:02:44]} 8. g5 {[%clk 0:02:38]}  Nh5 {[%clk 0:02:44]} 9. Qd2 {[%clk 0:02:31]}  O-O {[%clk 0:02:41]} 10. dxe5 {[%clk 0:02:25]}  Nxe5 {[%clk 0:02:36]} 11. Nxe5 {[%clk 0:02:23]}  dxe5 {[%clk 0:02:31]} 12. Bc4 {[%clk 0:02:21]}  b5 {[%clk 0:02:28]} 13. Bb3 {[%clk 0:02:19]}  a5 {[%clk 0:02:24]} 14. a4 {[%clk 0:02:12]}  b4 {[%clk 0:02:22]} 15. Ne2 {[%clk 0:02:12]}  Nf4 {[%clk 0:02:21]} 16. O-O-O {[%clk 0:02:05]}  Qe7 {[%clk 0:01:55]} 17. Nxf4 {[%clk 0:01:57]}  exf4 {[%clk 0:01:55]} 18. Bxf4 {[%clk 0:01:57]}  Qxe4 {[%clk 0:01:54]} 19. Rge1 {[%clk 0:01:56]}  Qf3 {[%clk 0:01:49]} 20. Bd6 {[%clk 0:01:49]}  Rd8 {[%clk 0:01:31]} 21. Re7 {[%clk 0:01:37]}  Bg4 {[%clk 0:01:29]} 22. Rxf7 {[%clk 0:01:21]}  Qxd1+ {[%clk 0:01:28]} 23. Qxd1 {[%clk 0:01:20]}  Bxd1 {[%clk 0:01:27]} 24. Rf8# {[%clk 0:01:19]} 1-0


[Site "https://www.chess.com"]

[Event "Titled Tuesday Blitz April 11 Early 2023"]
[White "Grot, Blazej"]
[Black "Mendez Fortes, Eduardo Jesus"]
[WhiteFideId "21835845"]
[BlackFideId "3502376"]
[WhiteElo "1823"]
[BlackElo "2307"]
[Result "1-0"]
[Round "07"]
[TimeControl "180+2"]
[Date "2023.04.11"]
[WhiteClock "0:01:04"]
[BlackClock "0:00:43"]

1. e4 {[%clk 0:03:00]}  c5 {[%clk 0:02:59]} 2. Nf3 {[%clk 0:03:00]}  d6 {[%clk 0:02:59]} 3. Bb5+ {[%clk 0:02:58]}  Nd7 {[%clk 0:02:59]} 4. c3 {[%clk 0:02:56]}  Nf6 {[%clk 0:02:55]} 5. Bd3 {[%clk 0:02:52]}  g6 {[%clk 0:02:46]} 6. O-O {[%clk 0:02:52]}  Bg7 {[%clk 0:02:46]} 7. Re1 {[%clk 0:02:48]}  O-O {[%clk 0:02:44]} 8. Bf1 {[%clk 0:02:44]}  e5 {[%clk 0:02:41]} 9. d4 {[%clk 0:02:40]}  exd4 {[%clk 0:02:29]} 10. cxd4 {[%clk 0:02:41]}  cxd4 {[%clk 0:02:23]} 11. Nxd4 {[%clk 0:02:42]}  Nc5 {[%clk 0:02:23]} 12. Nc3 {[%clk 0:02:38]}  Re8 {[%clk 0:02:23]} 13. f3 {[%clk 0:02:34]}  d5 {[%clk 0:02:20]} 14. e5 {[%clk 0:02:29]}  Nfd7 {[%clk 0:02:17]} 15. f4 {[%clk 0:02:29]}  Nb6 {[%clk 0:02:13]} 16. Bd2 {[%clk 0:02:23]}  Nc4 {[%clk 0:02:01]} 17. Bc1 {[%clk 0:02:18]}  f6 {[%clk 0:01:59]} 18. Nf3 {[%clk 0:02:13]}  fxe5 {[%clk 0:01:52]} 19. Qxd5+ {[%clk 0:02:07]}  Qxd5 {[%clk 0:01:50]} 20. Nxd5 {[%clk 0:02:07]}  Nb6 {[%clk 0:01:45]} 21. Nc7 {[%clk 0:02:02]}  Bf5 {[%clk 0:01:39]} 22. Nxa8 {[%clk 0:01:57]}  Rxa8 {[%clk 0:01:38]} 23. Nxe5 {[%clk 0:01:57]}  h5 {[%clk 0:01:30]} 24. Be3 {[%clk 0:01:52]}  Ne6 {[%clk 0:01:29]} 25. g3 {[%clk 0:01:47]}  Nd5 {[%clk 0:01:25]} 26. Bc4 {[%clk 0:01:42]}  Nxe3 {[%clk 0:01:23]} 27. Rxe3 {[%clk 0:01:42]}  Kh7 {[%clk 0:01:23]} 28. Rd1 {[%clk 0:01:36]}  Nc5 {[%clk 0:01:17]} 29. b3 {[%clk 0:01:30]}  Rc8 {[%clk 0:01:11]} 30. Nf7 {[%clk 0:01:25]}  a6 {[%clk 0:00:52]} 31. Nd6 {[%clk 0:01:17]}  Rc7 {[%clk 0:00:48]} 32. Ne8 {[%clk 0:01:08]}  Rc6 {[%clk 0:00:43]} 33. Re7 {[%clk 0:01:04]} 1-0


[Site "https://www.chess.com"]

[Event "Titled Tuesday Blitz April 11 Early 2023"]
[White "Costachi, Mihnea"]
[Black "Novikov, Evgenij"]
[WhiteFideId "1217518"]
[BlackFideId "4125380"]
[WhiteElo "2456"]
[BlackElo "2242"]
[Result "1-0"]
[Round "07"]
[TimeControl "180+2"]
[Date "2023.04.11"]
[WhiteClock "0:01:27"]
[BlackClock "0:00:01"]

1. e4 {[%clk 0:03:00]}  d5 {[%clk 0:02:59]} 2. exd5 {[%clk 0:02:59]}  Nf6 {[%clk 0:03:00]} 3. Nf3 {[%clk 0:02:58]}  Bg4 {[%clk 0:02:43]} 4. Be2 {[%clk 0:02:57]}  Qxd5 {[%clk 0:02:40]} 5. O-O {[%clk 0:02:57]}  c6 {[%clk 0:02:30]} 6. h3 {[%clk 0:02:57]}  h5 {[%clk 0:02:27]} 7. c4 {[%clk 0:02:54]}  Qd6 {[%clk 0:02:26]} 8. d4 {[%clk 0:02:52]}  Nbd7 {[%clk 0:02:22]} 9. Nc3 {[%clk 0:02:35]}  e6 {[%clk 0:02:15]} 10. d5 {[%clk 0:02:21]}  Bxf3 {[%clk 0:01:37]} 11. Bxf3 {[%clk 0:02:19]}  cxd5 {[%clk 0:01:37]} 12. cxd5 {[%clk 0:02:19]}  e5 {[%clk 0:01:38]} 13. Nb5 {[%clk 0:02:13]}  Qb6 {[%clk 0:01:32]} 14. a4 {[%clk 0:02:14]}  Bc5 {[%clk 0:01:24]} 15. d6 {[%clk 0:02:07]}  O-O {[%clk 0:01:19]} 16. b4 {[%clk 0:01:58]}  Bd4 {[%clk 0:01:08]} 17. Nxd4 {[%clk 0:01:55]}  exd4 {[%clk 0:01:09]} 18. Bf4 {[%clk 0:01:52]}  Rfd8 {[%clk 0:00:55]} 19. a5 {[%clk 0:01:49]}  Qxb4 {[%clk 0:00:51]} 20. a6 {[%clk 0:01:44]}  Rab8 {[%clk 0:00:31]} 21. axb7 {[%clk 0:01:43]}  Nc5 {[%clk 0:00:22]} 22. Rxa7 {[%clk 0:01:44]}  Nfd7 {[%clk 0:00:12]} 23. Qb1 {[%clk 0:01:33]}  Qc4 {[%clk 0:00:09]} 24. Rc1 {[%clk 0:01:32]}  Qe6 {[%clk 0:00:10]} 25. Ra8 {[%clk 0:01:29]}  g6 {[%clk 0:00:06]} 26. Rxb8 {[%clk 0:01:29]}  Rxb8 {[%clk 0:00:07]} 27. Qb5 {[%clk 0:01:29]}  Kg7 {[%clk 0:00:06]} 28. Rxc5 {[%clk 0:01:26]}  Nxc5 {[%clk 0:00:02]} 29. Qxc5 {[%clk 0:01:26]}  d3 {[%clk 0:00:03]} 30. Qd4+ {[%clk 0:01:25]}  Qf6 {[%clk 0:00:03]} 31. Qxf6+ {[%clk 0:01:25]}  Kxf6 {[%clk 0:00:03]} 32. d7 {[%clk 0:01:26]}  Rd8 {[%clk 0:00:01]} 33. b8=Q {[%clk 0:01:27]} 1-0


[Site "https://www.chess.com"]

[Event "Titled Tuesday Blitz April 11 Early 2023"]
[White "Mortazavi, Ali"]
[Black "Aldokhin, Ivan"]
[WhiteFideId "401323"]
[BlackFideId "24115720"]
[WhiteElo "2339"]
[BlackElo "2322"]
[Result "0-1"]
[Round "07"]
[TimeControl "180+2"]
[Date "2023.04.11"]
[WhiteClock "0:00:12"]
[BlackClock "0:00:09"]

1. Nf3 {[%clk 0:02:57]}  Nf6 {[%clk 0:02:52]} 2. g3 {[%clk 0:02:55]}  g6 {[%clk 0:02:53]} 3. Bg2 {[%clk 0:02:55]}  Bg7 {[%clk 0:02:54]} 4. O-O {[%clk 0:02:55]}  d6 {[%clk 0:02:55]} 5. d3 {[%clk 0:02:55]}  O-O {[%clk 0:02:55]} 6. e4 {[%clk 0:02:55]}  Nc6 {[%clk 0:02:56]} 7. Nc3 {[%clk 0:02:55]}  e5 {[%clk 0:02:57]} 8. h3 {[%clk 0:02:51]}  Nd7 {[%clk 0:02:56]} 9. a4 {[%clk 0:02:48]}  f5 {[%clk 0:02:57]} 10. exf5 {[%clk 0:02:46]}  gxf5 {[%clk 0:02:56]} 11. a5 {[%clk 0:02:44]}  a6 {[%clk 0:02:56]} 12. Nh4 {[%clk 0:02:06]}  Nc5 {[%clk 0:02:27]} 13. f4 {[%clk 0:01:34]}  Nd4 {[%clk 0:02:16]} 14. Nd5 {[%clk 0:01:21]}  Be6 {[%clk 0:02:02]} 15. Kh2 {[%clk 0:01:13]}  c6 {[%clk 0:02:01]} 16. Nb6 {[%clk 0:01:13]}  Rb8 {[%clk 0:02:01]} 17. b4 {[%clk 0:01:03]}  Nd7 {[%clk 0:01:57]} 18. Na4 {[%clk 0:00:45]}  Qf6 {[%clk 0:01:45]} 19. Rb1 {[%clk 0:00:44]}  Rbe8 {[%clk 0:01:44]} 20. c3 {[%clk 0:00:43]}  Nb5 {[%clk 0:01:44]} 21. Bd2 {[%clk 0:00:43]}  Kh8 {[%clk 0:01:21]} 22. fxe5 {[%clk 0:00:41]}  dxe5 {[%clk 0:01:15]} 23. Qh5 {[%clk 0:00:40]}  Qf7 {[%clk 0:00:43]} 24. Qxf7 {[%clk 0:00:40]}  Rxf7 {[%clk 0:00:44]} 25. Nc5 {[%clk 0:00:41]}  Nxc5 {[%clk 0:00:43]} 26. bxc5 {[%clk 0:00:42]}  e4 {[%clk 0:00:35]} 27. d4 {[%clk 0:00:36]}  e3 {[%clk 0:00:24]} 28. Bxe3 {[%clk 0:00:28]}  Nxc3 {[%clk 0:00:24]} 29. Rbe1 {[%clk 0:00:29]}  Bc4 {[%clk 0:00:23]} 30. Rxf5 {[%clk 0:00:27]}  Rfe7 {[%clk 0:00:16]} 31. Bd2 {[%clk 0:00:20]}  Rxe1 {[%clk 0:00:16]} 32. Bxc3 {[%clk 0:00:20]}  Rc1 {[%clk 0:00:14]} 33. Bd2 {[%clk 0:00:20]}  Rc2 {[%clk 0:00:14]} 34. Bf4 {[%clk 0:00:19]}  Ree2 {[%clk 0:00:13]} 35. g4 {[%clk 0:00:11]}  Bd5 {[%clk 0:00:12]} 36. Rxd5 {[%clk 0:00:11]}  cxd5 {[%clk 0:00:12]} 37. Kg3 {[%clk 0:00:12]}  Bxd4 {[%clk 0:00:11]} 38. Bxd5 {[%clk 0:00:12]}  Bf2+ {[%clk 0:00:09]} 39. Kf3 {[%clk 0:00:12]}  Bxh4 {[%clk 0:00:09]} 40. Be4 {[%clk 0:00:12]}  Rf2+ {[%clk 0:00:09]} 41. Ke3 {[%clk 0:00:12]}  Rce2+ {[%clk 0:00:09]} 42. Kd3 {[%clk 0:00:12]}  Rxf4 {[%clk 0:00:09]} 0-1


[Site "https://www.chess.com"]